bitfinex/quotes_BTCUSD_20241009
["timestamp","ask_amount","ask_price","bid_price","bid_amount"]
[1728473367602,19.0526533,62187.0,62186.0,0.27999071]
[1728473368042,19.05064061,62187.0,62186.0,0.27999071]
[1728473368472,19.05264061,62187.0,62186.0,0.27999071]
[1728473368848,19.05064061,62187.0,62186.0,0.27999071]
[1728473369266,19.05564061,62187.0,62186.0,0.27999071]
[1728473369864,19.05864061,62187.0,62186.0,0.27999071]
[1728473371077,19.05864061,62187.0,62186.0,0.26492822]
[1728473371078,19.01941077,62187.0,62186.0,0.26492822]
[1728473371290,19.05863599,62187.0,62186.0,0.27998899]
[1728473373425,19.05863599,62187.0,62186.0,0.32818658]
[1728473373848,19.05863599,62187.0,62186.0,0.27998899]
[1728473374285,19.05863599,62187.0,62186.0,0.32819136]
[1728473374718,19.05863599,62187.0,62186.0,0.32819246]
[1728473377924,19.01941077,62187.0,62186.0,0.31313059]
[1728473378137,19.0586311,62187.0,62186.0,0.32819198]
[1728473380659,19.1522311,62187.0,62186.0,0.32819198]
[1728473380878,19.2331311,62187.0,62186.0,0.32818878]
[1728473381544,19.19391077,62187.0,62186.0,0.31312739]
[1728473381793,19.23313097,62187.0,62186.0,0.32818877]
[1728473382719,19.23313097,62187.0,62186.0,0.2799896]
[1728473382960,19.23513097,62187.0,62186.0,0.2799896]
[1728473383202,19.23313097,62187.0,62186.0,0.2799896]
[1728473384122,19.22813097,62187.0,62186.0,0.2799896]
[1728473384816,19.23313097,62187.0,62186.0,0.2799896]
[1728473384826,19.22513097,62187.0,62186.0,0.2799896]
[1728473385016,19.22513131,62187.0,62186.0,0.27999084]
[1728473385236,19.23713131,62187.0,62186.0,0.28099084]
[1728473385462,19.23413131,62187.0,62186.0,0.28099084]
[1728473385921,19.24213131,62187.0,62186.0,0.28099084]
[1728473388326,19.22704419,62187.0,62186.0,0.28099084]
[1728473388588,19.24212758,62187.0,62186.0,0.28099084]
[1728473391686,19.20291077,62187.0,62186.0,0.26592822]
[1728473391917,19.24212327,62187.0,62186.0,0.28098796]
[1728473398521,19.20291077,62187.0,62186.0,0.26592822]
[1728473398730,19.20291077,62187.0,62186.0,0.28098707]
[1728473398980,19.26625169,62187.0,62186.0,0.26592822]
[1728473399208,19.28133286,62187.0,62186.0,0.28098748]
[1728473400417,19.20043286,62187.0,62186.0,0.40242181]
[1728473401080,19.16122182,62187.0,62186.0,0.38736255]
[1728473401280,19.20043349,62187.0,62186.0,0.40242294]
[1728473404595,19.1853541,62187.0,62186.0,0.40242363]
[1728473404809,19.20043677,62187.0,62186.0,0.40242363]
[1728473405018,19.20043677,62187.0,62186.0,0.2809893]
[1728473408695,19.16122572,62187.0,62186.0,0.2809893]
[1728473414371,19.12201077,62187.0,62186.0,0.26592822]
[1728473414639,19.16691628,62187.0,62186.0,0.01606954]
[1728473414921,19.23817919,62187.0,62186.0,0.01606954]
[1728473415138,19.18991628,62187.0,62186.0,0.01606954]
[1728473415424,19.28835061,62187.0,62186.0,0.001]
[1728473415646,0.09757247,62183.0,62182.0,0.00423144]
[1728473415872,0.33373984,62183.0,62182.0,0.00423144]
[1728473416102,0.002,62181.0,62178.0,0.001642]
[1728473416329,0.00367247,62179.0,62178.0,0.001642]
[1728473416613,0.13700551,62179.0,62178.0,0.001642]
[1728473417535,0.14584823,62179.0,62178.0,0.001642]
[1728473417760,0.15184823,62179.0,62178.0,0.001642]
[1728473418677,0.15184823,62179.0,62178.0,0.00573563]
[1728473418910,0.15184823,62179.0,62178.0,0.001642]
[1728473419415,0.15684823,62179.0,62178.0,0.001642]
[1728473421022,0.11761519,62179.0,62178.0,0.001642]
[1728473421257,0.1567722,62179.0,62178.0,0.001642]
[1728473422154,0.15309973,62179.0,62178.0,0.001642]
[1728473422380,0.1567722,62179.0,62178.0,0.001642]
[1728473424741,0.15675941,62179.0,62178.0,0.001642]
[1728473426746,0.16249687,62179.0,62178.0,0.001642]
[1728473428248,0.16249269,62179.0,62178.0,0.001642]
[1728473431258,0.14743658,62179.0,62178.0,0.001642]
[1728473431631,0.16248903,62179.0,62178.0,0.001642]
[1728473434305,0.15648903,62179.0,62178.0,0.001642]
[1728473434489,0.15731003,62179.0,62178.0,0.001642]
[1728473434696,0.24551003,62179.0,62178.0,0.001642]
[1728473435120,0.23951003,62179.0,62178.0,0.001642]
[1728473435574,0.23451003,62179.0,62178.0,0.001642]
[1728473437879,0.19537365,62179.0,62178.0,0.001642]
[1728473438072,0.21042774,62179.0,62178.0,0.001642]
[1728473438301,0.19537365,62179.0,62178.0,0.001642]
[1728473441090,0.23453122,62179.0,62178.0,0.001642]
[1728473441293,0.21947062,62179.0,62178.0,0.001642]
[1728473443278,0.2586329,62179.0,62178.0,0.001642]
[1728473444108,0.21947062,62179.0,62178.0,0.001642]
[1728473444376,0.21747062,62179.0,62178.0,0.001642]
[1728473444638,0.05788226,62179.0,62178.0,0.001642]
[1728473444856,0.07295824,62179.0,62178.0,0.001642]
[1728473446961,0.03743316,62179.0,62178.0,0.001642]
[1728473447153,0.0766297,62179.0,62178.0,0.001642]
[1728473447351,0.06155411,62179.0,62178.0,0.001642]
[1728473447567,0.07662784,62179.0,62178.0,0.001642]
[1728473450582,0.03743316,62179.0,62178.0,0.001642]
[1728473450828,0.07662049,62179.0,62178.0,0.001642]
[1728473451025,0.07662049,62179.0,62178.0,0.16247964]
[1728473451609,0.06777777,62179.0,62178.0,0.16247964]
[1728473452151,0.0641053,62179.0,62178.0,0.16247964]
[1728473454173,0.06410523,62179.0,62178.0,0.16247964]
[1728473454624,0.04000826,62179.0,62178.0,0.16247964]
[1728473455114,0.04000826,62179.0,62178.0,0.26247964]
[1728473455325,0.04000826,62179.0,62178.0,0.33847964]
[1728473455539,0.01589302,62179.0,62178.0,0.33847964]
[1728473456392,0.02189302,62179.0,62178.0,0.33847964]
[1728473456603,0.02689302,62179.0,62178.0,0.33847964]
[1728473456788,0.02089302,62179.0,62178.0,0.33847964]
[1728473457123,0.02689302,62179.0,62178.0,0.33847964]
[1728473457544,0.02689302,62179.0,62178.0,0.33980717]
[1728473457751,0.02689302,62179.0,62178.0,0.43510717]
[1728473458602,0.02089302,62179.0,62178.0,0.43510717]
[1728473458809,0.01589302,62179.0,62178.0,0.43510717]
[1728473459024,0.01889302,62179.0,62178.0,0.43510717]
[1728473459244,0.01789302,62179.0,62178.0,0.43510717]
[1728473459453,0.01589302,62179.0,62178.0,0.43510717]
[1728473459672,0.01689302,62179.0,62178.0,0.43510717]
[1728473460533,0.001821,62179.0,62178.0,0.48331568]
[1728473461058,0.0168768,62179.0,62178.0,0.48333163]
[1728473461276,0.0168768,62179.0,62178.0,0.43510717]
[1728473461960,0.001821,62179.0,62178.0,0.43510717]
[1728473466368,0.001821,62179.0,62178.0,0.50737547]
[1728473466588,19.000821,62187.0,62186.0,0.00132753]
[1728473466810,19.000821,62187.0,62186.0,0.55126365]
[1728473467028,19.000821,62187.0,62186.0,0.63016365]
[1728473467515,19.000821,62187.0,62186.0,0.5578995]
[1728473468362,19.000821,62187.0,62186.0,0.61426627]
[1728473468586,19.003821,62187.0,62186.0,0.61426627]
[1728473468824,19.007821,62187.0,62186.0,0.61426627]
[1728473469032,19.004821,62187.0,62186.0,0.61426627]
[1728473469250,19.01663829,62187.0,62186.0,0.56613523]
[1728473469457,19.01263829,62187.0,62186.0,0.56613523]
[1728473469667,19.01663829,62187.0,62186.0,0.56613523]
[1728473471940,19.01663829,62187.0,62186.0,0.57039115]
[1728473473931,19.01663829,62187.0,62186.0,1.04993115]
[1728473479317,19.01663829,62187.0,62186.0,0.95453115]
[1728473480207,19.01363829,62187.0,62186.0,0.95453115]
[1728473480831,19.00963829,62187.0,62186.0,0.95453115]
[1728473481258,19.01063829,62187.0,62186.0,0.95453115]
[1728473481691,19.00963829,62187.0,62186.0,0.95453115]
[1728473482121,19.01063829,62187.0,62186.0,0.95453115]
[1728473482339,19.01063829,62187.0,62186.0,0.84909615]
[1728473482973,19.01063829,62187.0,62186.0,1.00990315]
[1728473486758,19.10233829,62187.0,62186.0,0.83465629]
[1728473486964,19.18263829,62187.0,62186.0,0.43413629]
[1728473487395,19.18263829,62187.0,62186.0,0.44919571]
[1728473490014,19.19770067,62187.0,62186.0,0.44919571]
[1728473490229,19.18263829,62187.0,62186.0,0.43413629]
[1728473490494,19.19770025,62187.0,62186.0,0.44920153]
[1728473491167,19.22379858,62187.0,62186.0,0.3409658]
[1728473491597,19.22179858,62187.0,62186.0,0.3409658]
[1728473491835,19.22079858,62187.0,62186.0,0.32590056]
[1728473492277,19.22847105,62187.0,62186.0,0.32590056]
[1728473492702,19.23047105,62187.0,62186.0,0.32590056]
[1728473492929,19.23347105,62187.0,62186.0,0.32590056]
[1728473493167,19.23047105,62187.0,62186.0,0.32590056]
[1728473493400,19.23347105,62187.0,62186.0,0.16506292]
[1728473493584,19.19431076,62187.0,62186.0,0.16506292]
[1728473493796,19.19531076,62187.0,62186.0,0.16506292]
[1728473494010,19.22739468,62187.0,62186.0,0.16506292]
[1728473494225,19.24244713,62187.0,62186.0,0.160807]
[1728473494463,19.36388146,62187.0,62186.0,0.160807]
[1728473494681,19.35588146,62187.0,62186.0,0.160807]
[1728473494898,19.36488146,62187.0,62186.0,0.160807]
[1728473495536,19.35688146,62187.0,62186.0,0.160807]
[1728473495989,19.36588146,62187.0,62186.0,0.160807]
[1728473496211,19.35688146,62187.0,62186.0,0.160807]
[1728473496443,19.35788146,62187.0,62186.0,0.163807]
[1728473496914,19.31874509,62187.0,62186.0,0.163807]
[1728473497168,19.34884274,62187.0,62186.0,0.163807]
[1728473497388,19.34984274,62187.0,62186.0,0.166807]
[1728473497881,19.22173594,62187.0,62186.0,0.33655274]
[1728473498101,19.22173271,62187.0,62186.0,0.33655274]
[1728473498315,19.19867585,62187.0,62186.0,0.32764464]
[1728473498733,19.19767585,62187.0,62186.0,0.32464464]
[1728473499161,19.20767585,62187.0,62186.0,0.32464464]
[1728473499372,19.19767585,62187.0,62186.0,0.32464464]
[1728473499633,19.19667585,62187.0,62186.0,0.32164464]
[1728473499847,19.21767585,62187.0,62186.0,0.32264464]
[1728473500062,19.20867585,62187.0,62186.0,0.32264464]
[1728473500273,19.18163829,62187.0,62186.0,0.32164464]
[1728473500504,19.2056746,62187.0,62186.0,0.32164464]
[1728473500732,19.22034707,62187.0,62186.0,0.32264464]
[1728473500954,19.24640401,62187.0,62186.0,0.32264464]
[1728473503120,19.24440401,62187.0,62186.0,0.32264464]
[1728473503862,19.24439458,62187.0,62186.0,0.32264464]
[1728473504551,19.24072211,62187.0,62186.0,0.32264464]
[1728473504793,19.24439719,62187.0,62186.0,0.32264464]
[1728473505012,19.24072472,62187.0,62186.0,0.32264464]
[1728473505238,19.14902472,62187.0,62186.0,0.32264464]
[1728473505680,19.12497153,62187.0,62186.0,0.32264464]
[1728473505924,19.04467153,62187.0,62186.0,0.32264464]
[1728473506431,19.04467153,62187.0,62186.0,0.42264464]
[1728473507318,19.02963829,62187.0,62186.0,0.42264464]
[1728473507554,19.04467474,62187.0,62186.0,0.42264464]
[1728473510612,19.02963829,62187.0,62186.0,0.42264464]
[1728473510828,19.04468309,62187.0,62186.0,0.43050569]
[1728473514191,19.02963829,62187.0,62186.0,0.43050569]
[1728473514430,19.04468866,62187.0,62186.0,0.43050569]
[1728473515116,19.02963829,62187.0,62186.0,0.43050569]
[1728473515314,19.06877803,62187.0,62186.0,0.42264464]
[1728473516430,19.16397803,62187.0,62186.0,0.42264464]
[1728473516705,19.06877803,62187.0,62186.0,0.60760003]
[1728473516929,19.04469074,62187.0,62186.0,0.60760003]
[1728473517602,19.02963829,62187.0,62186.0,0.60760003]
[1728473517829,19.04469739,62187.0,62186.0,0.60892756]
[1728473518048,19.02963829,62187.0,62186.0,2.30061856]
[1728473518280,18.99747729,62187.0,62186.0,2.24992856]
[1728473518507,18.90099429,62187.0,62186.0,1.75652956]
[1728473518739,18.85783329,62187.0,62186.0,1.48223556]
[1728473519091,18.85783329,62187.0,62186.0,1.42524856]
[1728473519219,18.85783329,62187.0,62186.0,1.28589656]
[1728473519707,18.84883329,62187.0,62186.0,1.28489656]
[1728473520176,18.85083329,62187.0,62186.0,1.28489656]
[1728473521240,18.81867229,62187.0,62186.0,1.28489656]
[1728473521457,18.81867229,62187.0,62186.0,1.33303863]
[1728473521687,18.81867229,62187.0,62186.0,1.28489656]
[1728473522130,18.75435029,62187.0,62186.0,1.28489656]
[1728473525710,18.75435029,62187.0,62186.0,1.24438756]
[1728473528580,18.65786729,62187.0,62186.0,1.24438756]
[1728473528798,18.59354529,62187.0,62186.0,1.24438756]
[1728473529030,18.56138429,62187.0,62186.0,1.24438756]
[1728473529462,18.56138429,62187.0,62186.0,1.24602756]
[1728473529675,18.56138429,62187.0,62186.0,0.60956756]
[1728473529901,18.56220429,62187.0,62186.0,2.06697256]
[1728473531059,18.56220429,62187.0,62186.0,1.16052956]
[1728473532000,18.56220429,62187.0,62186.0,0.99061456]
[1728473532845,18.56220429,62187.0,62186.0,0.94473056]
[1728473535604,18.56220429,62187.0,62186.0,0.91183056]
[1728473540180,18.37489341,62187.0,62186.0,0.91183056]
[1728473540397,18.30091114,62187.0,62186.0,1.04243122]
[1728473540620,18.30091114,62187.0,62186.0,0.97875512]
[1728473540882,18.26875014,62187.0,62186.0,0.93065446]
[1728473541104,18.11281613,62187.0,62186.0,0.93065446]
[1728473541313,18.09595512,62187.0,62186.0,0.93065446]
[1728473541975,18.06379412,62187.0,62186.0,0.93065446]
[1728473542188,18.03163312,62187.0,62186.0,0.93065446]
[1728473542406,17.93515012,62187.0,62186.0,0.93065446]
[1728473542619,17.93515012,62187.0,62186.0,0.99419123]
[1728473543257,17.87082812,62187.0,62186.0,0.99419123]
[1728473543445,17.77434512,62187.0,62186.0,0.99419123]
[1728473543672,17.69081543,62187.0,62186.0,0.99419123]
[1728473543883,17.62649343,62187.0,62186.0,0.99419123]
[1728473544094,17.59433243,62187.0,62186.0,0.99419123]
[1728473544299,17.56217143,62187.0,62186.0,0.99419123]
[1728473544517,17.53001043,62187.0,62186.0,0.99419123]
[1728473545170,17.43592085,62187.0,62186.0,0.99419123]
[1728473545378,17.37159885,62187.0,62186.0,2.26139123]
[1728473545590,17.33943785,62187.0,62186.0,2.26139123]
[1728473546224,17.24295485,62187.0,62186.0,2.26139123]
[1728473546417,17.17863285,62187.0,62186.0,2.26139123]
[1728473546840,17.10631085,62187.0,62186.0,2.26139123]
[1728473547047,17.07414985,62187.0,62186.0,2.26139123]
[1728473547253,17.00982785,62187.0,62186.0,2.26139123]
[1728473548386,17.00982785,62187.0,62186.0,2.3335343]
[1728473548597,17.00982785,62187.0,62186.0,2.26139123]
[1728473550593,16.96133685,62187.0,62186.0,2.26139123]
[1728473551055,16.96133685,62187.0,62186.0,2.17889123]
[1728473551677,16.96133685,62187.0,62186.0,2.22701675]
[1728473551881,16.96133685,62187.0,62186.0,1.92475375]
[1728473552125,16.96133685,62187.0,62186.0,3.15311823]
[1728473554056,16.96133685,62187.0,62186.0,2.77558223]
[1728473554713,16.96133685,62187.0,62186.0,2.43234723]
[1728473555350,16.96133685,62187.0,62186.0,2.50453183]
[1728473555779,16.96133685,62187.0,62186.0,2.43234723]
[1728473556731,16.96133685,62187.0,62186.0,2.50456867]
[1728473556941,16.96133685,62187.0,62186.0,2.43234723]
[1728473557429,16.94047685,62187.0,62186.0,2.52863909]
[1728473558494,16.92521685,62187.0,62186.0,2.52863909]
[1728473560143,16.92521685,62187.0,62186.0,2.43234723]
[1728473560558,16.92521685,62187.0,62186.0,2.55271205]
[1728473562299,16.92521685,62187.0,62186.0,2.43234723]
[1728473562691,16.89784164,62187.0,62186.0,2.43234723]
[1728473564638,16.89784164,62187.0,62186.0,2.36884804]
[1728473565483,16.88284164,62187.0,62186.0,2.36884804]
[1728473566240,16.88284164,62187.0,62186.0,1.10164804]
[1728473568548,16.88284164,62187.0,62186.0,0.54592904]
[1728473568765,16.88284164,62187.0,62186.0,2.12242304]
[1728473568970,16.88284164,62187.0,62186.0,2.08726004]
[1728473570460,16.88284164,62187.0,62186.0,1.54018404]
[1728473570664,16.88284164,62187.0,62186.0,1.49290704]
[1728473570871,16.88284164,62187.0,62186.0,1.36719504]
[1728473575249,16.88284164,62187.0,62186.0,1.12378974]
[1728473575481,16.95884164,62187.0,62186.0,1.12378974]
[1728473577537,16.95884164,62187.0,62186.0,1.08378974]
[1728473579520,16.95884164,62187.0,62186.0,1.22847203]
[1728473581113,16.95884164,62187.0,62186.0,1.22846936]
[1728473582617,16.95884164,62187.0,62186.0,1.21473636]
[1728473583574,16.95884164,62187.0,62186.0,1.02604174]
[1728473583999,17.05164164,62187.0,62186.0,0.32328464]
[1728473584228,17.06673208,62187.0,62186.0,0.41977456]
[1728473584441,17.06673208,62187.0,62186.0,0.32328464]
[1728473584654,17.09086695,62187.0,62186.0,0.32328464]
[1728473585074,17.09086357,62187.0,62186.0,0.32328464]
[1728473585640,17.07577821,62187.0,62186.0,0.32328464]
[1728473586019,17.05164164,62187.0,62186.0,0.42328464]
[1728473586899,17.07576233,62187.0,62186.0,0.42328464]
[1728473587125,17.09083776,62187.0,62186.0,0.42328464]
[1728473588071,17.05164164,62187.0,62186.0,0.42328464]
[1728473588298,17.09082041,62187.0,62186.0,0.42328464]
[1728473589157,17.09282041,62187.0,62186.0,0.42328464]
[1728473590700,17.09082041,62187.0,62186.0,0.42328464]
[1728473591117,17.09282041,62187.0,62186.0,0.42328464]
[1728473591578,17.09277204,62187.0,62186.0,0.42328464]
[1728473592718,17.09077204,62187.0,62186.0,0.42328464]
[1728473594940,17.07571003,62187.0,62186.0,0.42328464]
[1728473595161,17.09075277,62187.0,62186.0,0.42328464]
[1728473595430,17.06668438,62187.0,62186.0,0.42328464]
[1728473598522,17.06668364,62187.0,62186.0,0.42328464]
[1728473603335,17.09275178,62187.0,62186.0,0.42328464]
[1728473604682,17.09075178,62187.0,62186.0,0.42328464]
[1728473605337,17.05164164,62187.0,62186.0,0.42328464]
[1728473605776,17.07571364,62187.0,62186.0,0.42328464]
[1728473606211,17.09075864,62187.0,62186.0,0.42328464]
[1728473606639,17.08875864,62187.0,62186.0,0.42328464]
[1728473607092,17.09075864,62187.0,62186.0,0.42328464]
[1728473607341,16.92195864,62187.0,62186.0,0.42328464]
[1728473607608,16.89588664,62187.0,62186.0,0.42328464]
[1728473607826,16.88784164,62187.0,62186.0,0.82958417]
[1728473609743,16.88433475,62187.0,62186.0,0.42461217]
[1728473609953,16.89033475,62187.0,62186.0,1.86742217]
[1728473610158,16.89033475,62187.0,62186.0,1.81106617]
[1728473610367,16.88433475,62187.0,62186.0,1.79027917]
[1728473610816,16.88633475,62187.0,62186.0,1.79027917]
[1728473612299,16.88633475,62187.0,62186.0,1.51994917]
[1728473612967,16.88633475,62187.0,62186.0,1.49579617]
[1728473613142,16.88633475,62187.0,62186.0,1.30499417]
[1728473613298,16.88633475,62187.0,62186.0,1.25354617]
[1728473615552,16.88633475,62187.0,62186.0,1.17010317]
[1728473615959,16.88633475,62187.0,62186.0,1.13856217]
[1728473616166,16.88350715,62187.0,62186.0,1.12830917]
[1728473618954,16.84942442,62187.0,62186.0,1.12830917]
[1728473619454,16.80570565,62187.0,62186.0,1.12830917]
[1728473619689,16.80570565,62187.0,62186.0,1.26833639]
[1728473620174,16.80570565,62187.0,62186.0,1.29890917]
[1728473620405,16.72774598,62187.0,62186.0,0.59521217]
[1728473620650,16.72774598,62187.0,62186.0,4.30881017]
[1728473620887,16.72774598,62187.0,62186.0,3.51472467]
[1728473621131,16.71974598,62187.0,62186.0,3.49307267]
[1728473621612,16.71974598,62187.0,62186.0,3.43320467]
[1728473622829,16.71974598,62187.0,62186.0,3.36102317]
[1728473623835,16.71974598,62187.0,62186.0,3.43320467]
[1728473624307,16.71974598,62187.0,62186.0,3.36102317]
[1728473624556,16.71974598,62187.0,62186.0,2.63517272]
[1728473624818,16.71974598,62187.0,62186.0,2.51886991]
[1728473625000,16.71974598,62187.0,62186.0,2.41786457]
[1728473627427,16.71974598,62187.0,62186.0,2.18453057]
[1728473627631,16.71974598,62187.0,62186.0,2.09263057]
[1728473627847,16.68441598,62187.0,62186.0,2.09263057]
[1728473628646,16.68441598,62187.0,62186.0,1.52211657]
[1728473628843,16.68441598,62187.0,62186.0,1.57130004]
[1728473630223,16.68441598,62187.0,62186.0,1.64342021]
[1728473630433,16.68441598,62187.0,62186.0,1.56472021]
[1728473631850,16.68441598,62187.0,62186.0,0.61804921]
[1728473632028,16.68441598,62187.0,62186.0,2.26925821]
[1728473633938,16.68441598,62187.0,62186.0,2.19713804]
[1728473634369,16.68441598,62187.0,62186.0,2.09419904]
[1728473637420,16.67958501,62187.0,62186.0,2.09419904]
[1728473637669,16.60979501,62187.0,62186.0,2.09419904]
[1728473637978,16.60979501,62187.0,62186.0,2.01508604]
[1728473638394,16.60979501,62187.0,62186.0,2.08719703]
[1728473639074,16.60979501,62187.0,62186.0,1.92639003]
[1728473639503,16.60979501,62187.0,62186.0,1.85427904]
[1728473639708,16.60979501,62187.0,62186.0,1.92640714]
[1728473639923,16.60979501,62187.0,62186.0,1.92640733]
[1728473640355,16.60979501,62187.0,62186.0,1.85427904]
[1728473643411,16.60979501,62187.0,62186.0,1.82914338]
[1728473643614,16.60979501,62187.0,62186.0,0.33595176]
[1728473643615,16.70639501,62187.0,62186.0,0.33595176]
[1728473643919,16.70639501,62187.0,62186.0,0.38512204]
[1728473644135,16.78149501,62187.0,62186.0,0.38512204]
[1728473644591,16.79657083,62187.0,62186.0,0.38512204]
[1728473644798,16.78149501,62187.0,62186.0,0.38512204]
[1728473645543,16.79457062,62187.0,62186.0,0.38379451]
[1728473645774,16.79457062,62187.0,62186.0,0.38512204]
[1728473646005,16.79657062,62187.0,62186.0,0.38512204]
[1728473646544,16.79657062,62187.0,62186.0,0.38379451]
[1728473646545,16.79457062,62187.0,62186.0,0.38379451]
[1728473646781,16.79356962,62187.0,62186.0,0.26247764]
[1728473648064,16.79656962,62187.0,62186.0,0.26247764]
[1728473648296,16.79856962,62187.0,62186.0,0.26247764]
[1728473648546,16.79856962,62187.0,62186.0,0.38379451]
[1728473650232,16.79856359,62187.0,62186.0,0.26247764]
[1728473651938,16.80056359,62187.0,62186.0,0.26247764]
[1728473653566,16.80055637,62187.0,62186.0,0.26247764]
[1728473653772,16.79855637,62187.0,62186.0,0.38379451]
[1728473655795,16.62685637,62187.0,62186.0,0.38379451]
[1728473656205,16.61179501,62187.0,62186.0,0.38379451]
[1728473658103,16.61179501,62187.0,62186.0,0.72940151]
[1728473658308,16.61179501,62187.0,62186.0,0.80166723]
[1728473658720,16.61179501,62187.0,62186.0,0.72940151]
[1728473658987,16.61179501,62187.0,62186.0,0.8257558]
[1728473661244,16.61179501,62187.0,62186.0,0.85117191]
[1728473661499,16.61179501,62187.0,62186.0,0.92877191]
[1728473661711,16.61179501,62187.0,62186.0,0.80832904]
[1728473665130,16.59627975,62187.0,62186.0,0.80832904]
[1728473665896,16.59127975,62187.0,62186.0,0.80832904]
[1728473666217,16.58483846,62187.0,62186.0,0.80832904]
[1728473667375,16.58683846,62187.0,62186.0,0.80832904]
[1728473668330,16.58200748,62187.0,62186.0,0.80832904]
[1728473668910,16.58200748,62187.0,62186.0,5.51272204]
[1728473670484,16.58200748,62187.0,62186.0,5.28915504]
[1728473671854,16.58200748,62187.0,62186.0,5.02348804]
[1728473672066,16.58200748,62187.0,62186.0,4.63158104]
[1728473672307,16.58200748,62187.0,62186.0,4.22727604]
[1728473674372,16.57717651,62187.0,62186.0,4.22727604]
[1728473675567,16.54611923,62187.0,62186.0,4.22727604]
[1728473676581,16.51200923,62187.0,62186.0,4.22727604]
[1728473679973,16.51200923,62187.0,62186.0,0.38512204]
[1728473680145,16.51200923,62187.0,62186.0,5.24704504]
[1728473680356,16.51200923,62187.0,62186.0,5.18586504]
[1728473684027,16.51200923,62187.0,62186.0,5.30621399]
[1728473684644,16.47666971,62187.0,62186.0,5.30621399]
[1728473685812,16.47666971,62187.0,62186.0,5.32126821]
[1728473686691,16.47666971,62187.0,62186.0,5.20091926]
[1728473687465,16.47666971,62187.0,62186.0,6.46811926]
[1728473688071,16.46666971,62187.0,62186.0,6.46811926]
[1728473688598,16.45766971,62187.0,62186.0,6.46811926]
[1728473688821,16.45766971,62187.0,62186.0,6.45306504]
[1728473689031,16.45766971,62187.0,62186.0,6.46813103]
[1728473690630,16.45766971,62187.0,62186.0,6.51832194]
[1728473691724,16.44866971,62187.0,62186.0,6.51832194]
[1728473691939,16.44866971,62187.0,62186.0,6.63866484]
[1728473692144,16.44866971,62187.0,62186.0,6.63867065]
[1728473692568,16.41002193,62187.0,62186.0,6.51832775]
[1728473692782,16.41002193,62187.0,62186.0,6.63867522]
[1728473694682,16.41002193,62187.0,62186.0,6.54132775]
[1728473695320,16.41002193,62187.0,62186.0,6.66169375]
[1728473695321,16.33223579,62187.0,62186.0,6.66169375]
[1728473695534,16.31241074,62187.0,62186.0,6.91095075]
[1728473695716,16.29069574,62187.0,62186.0,6.91095075]
[1728473695950,16.29069574,62187.0,62186.0,6.74039384]
[1728473695951,16.19069574,62187.0,62186.0,6.74039384]
[1728473697028,16.17862474,62187.0,62186.0,6.74039384]
[1728473698520,16.17862474,62187.0,62186.0,6.8607794]
[1728473698754,16.16978474,62187.0,62186.0,6.8607794]
[1728473699152,16.16978474,62187.0,62186.0,6.8457076]
[1728473699154,16.16978474,62187.0,62186.0,6.86078619]
[1728473699366,16.14564247,62187.0,62186.0,6.86078619]
[1728473699732,15.94805247,62187.0,62186.0,6.86083669]
[1728473699926,15.4552139,62187.0,62186.0,6.74040063]
[1728473700782,15.4502459,62187.0,62186.0,6.74040063]
[1728473701078,15.3846559,62187.0,62186.0,6.74040063]
[1728473701688,15.3766559,62187.0,62186.0,6.86084637]
[1728473701902,15.3766559,62187.0,62186.0,6.85791395]
[1728473702133,15.3446559,62187.0,62186.0,6.85791395]
[1728473703505,15.3446559,62187.0,62186.0,6.73746821]
[1728473703875,15.2792869,62187.0,62186.0,6.73746821]
[1728473704601,15.2792869,62187.0,62186.0,6.72238962]
[1728473704976,15.2792869,62187.0,62186.0,6.73746221]
[1728473707824,15.25735213,62187.0,62186.0,6.69928721]
[1728473708059,15.25735213,62187.0,62186.0,4.70638762]
[1728473708321,15.25735213,62187.0,62186.0,4.78580127]
[1728473708551,15.18977213,62187.0,62186.0,3.83106827]
[1728473709200,15.17077213,62187.0,62186.0,3.83106827]
[1728473709413,15.17077213,62187.0,62186.0,4.44260427]
[1728473709638,15.17077213,62187.0,62186.0,4.25809927]
[1728473710303,15.17077213,62187.0,62186.0,4.18573627]
[1728473710759,15.17077213,62187.0,62186.0,4.15849927]
[1728473711401,15.13557213,62187.0,62186.0,4.15849927]
[1728473712270,15.13557213,62187.0,62186.0,4.19071927]
[1728473713114,15.13357213,62187.0,62186.0,4.19071927]
[1728473713546,15.13357213,62187.0,62186.0,4.19271927]
[1728473713762,15.13357213,62187.0,62186.0,3.98548027]
[1728473714009,15.13357213,62187.0,62186.0,4.03572518]
[1728473714253,15.13357213,62187.0,62186.0,2.95938418]
[1728473714521,15.09907213,62187.0,62186.0,2.95938418]
[1728473714726,15.09907213,62187.0,62186.0,2.90913927]
[1728473714940,15.09907213,62187.0,62186.0,2.90713927]
[1728473715122,15.09907213,62187.0,62186.0,2.91113927]
[1728473715361,15.09907213,62187.0,62186.0,2.91313927]
[1728473715791,14.96169213,62187.0,62186.0,2.91313927]
[1728473716003,14.96169213,62187.0,62186.0,2.89806462]
[1728473716217,14.96169213,62187.0,62186.0,2.9131378]
[1728473717980,14.96169213,62187.0,62186.0,2.89806462]
[1728473718207,14.45493368,62187.0,62186.0,2.91313809]
[1728473718445,13.64665475,62187.0,62186.0,2.95039567]
[1728473718900,13.64083475,62187.0,62186.0,2.95039567]
[1728473719156,13.64083475,62187.0,62186.0,2.97985944]
[1728473719157,12.64092451,62187.0,62186.0,2.97985944]
[1728473719423,12.64092451,62187.0,62186.0,2.97785944]
[1728473719424,12.54444151,62187.0,62186.0,2.97785944]
[1728473719667,11.99819982,62187.0,62186.0,2.98885944]
[1728473719907,11.51528013,62187.0,62186.0,2.98885944]
[1728473720170,11.51528013,62187.0,62186.0,2.98676462]
[1728473720418,11.03236044,62187.0,62186.0,2.98676462]
[1728473720661,10.38863575,62187.0,62186.0,2.98676462]
[1728473720916,9.90571606,62187.0,62186.0,2.98276462]
[1728473721192,9.85052706,62187.0,62186.0,2.98276462]
[1728473721454,9.20783984,62187.0,62186.0,2.99676462]
[1728473722232,9.20783984,62187.0,62186.0,2.91706462]
[1728473722491,9.04703484,62187.0,62186.0,2.91706462]
[1728473722733,9.03103484,62187.0,62186.0,2.91706462]
[1728473722980,9.00850579,62187.0,62186.0,2.91706462]
[1728473723475,8.91202279,62187.0,62186.0,2.91706462]
[1728473723720,8.84770079,62187.0,62186.0,2.91706462]
[1728473724465,8.81553979,62187.0,62186.0,2.91706462]
[1728473724950,8.68689579,62187.0,62186.0,2.91706462]
[1728473725467,8.49157079,62187.0,62186.0,2.91706462]
[1728473725720,8.49157079,62187.0,62186.0,2.96724708]
[1728473725967,8.45692079,62187.0,62186.0,2.96724708]
[1728473726453,8.32827679,62187.0,62186.0,2.96724708]
[1728473726690,8.29611579,62187.0,62186.0,2.96724708]
[1728473726935,7.70603722,62187.0,62186.0,3.00855774]
[1728473727168,7.7013278,62187.0,62186.0,3.10515774]
[1728473727411,7.6691668,62187.0,62186.0,3.10515774]
[1728473727657,7.0897938,62187.0,62186.0,3.10515774]
[1728473727904,7.0576328,62187.0,62186.0,3.10515774]